fUSD/lending_fUSD_20250518
["ID","MTS","AMOUNT","RATE_DAILY","PERIOD"]
[361557662,1747612275476,-1127.87,0.00013917,2]
[361557663,1747612275485,-400.0,0.00013917,2]
[361557664,1747612275494,-333.02600027,0.00013917,2]
[361557665,1747612275503,-400.0,0.00013917,2]
[361557666,1747612275512,-400.0,0.00013917,2]
[361557667,1747612275521,-400.0,0.00013917,2]
[361557668,1747612275530,-981.23,0.00013917,2]
[361557669,1747612275539,-997.29,0.00013917,2]
[361557670,1747612275548,-501.52,0.00013917,2]
[361557671,1747612275557,-522.46,0.00013917,2]
[361557672,1747612275567,-1497.95,0.00013917,2]
[361557673,1747612275581,-400.0,0.00013917,2]
[361557674,1747612275590,-434.37,0.00013917,2]
[361557675,1747612275599,-745.57,0.00013917,2]
[361557676,1747612275608,-400.0,0.00013917,2]
[361557677,1747612275619,-2152.49,0.00013917,2]
[361557678,1747612275630,-400.0,0.00013917,2]
[361557679,1747612275639,-400.0,0.00013917,2]
[361557680,1747612275649,-748.92,0.00013917,2]
[361557681,1747612275658,-400.0,0.00013917,2]
[361557682,1747612275669,-400.0,0.00013917,2]
[361557683,1747612275678,-400.0,0.00013917,2]
[361557684,1747612275687,-400.0,0.00013917,2]
[361557685,1747612275696,-1228.97,0.00013917,2]
[361557686,1747612275706,-400.0,0.00013917,2]
[361557687,1747612275715,-987.59,0.00013917,2]
[361557688,1747612275724,-502.88,0.00013917,2]
[361557689,1747612275733,-845.12,0.00013917,2]
[361557690,1747612275742,-636.19,0.00013917,2]
[361557691,1747612275751,-761.75,0.00013917,2]
[361557692,1747612275760,-400.0,0.00013917,2]
[361557693,1747612275769,-400.0,0.00013917,2]
[361557694,1747612275778,-400.0,0.00013917,2]
[361557695,1747612275787,-400.0,0.00013917,2]
[361557696,1747612275796,-520.94,0.00013917,2]
[361557697,1747612275805,-400.0,0.00013917,2]
[361557698,1747612275814,-1037.87,0.00013917,2]
[361557699,1747612275825,-1234.26,0.00013917,2]
[361557700,1747612275834,-400.0,0.00013917,2]
[361557701,1747612275843,-400.0,0.00013917,2]
[361557702,1747612275852,-1169.19,0.00013917,2]
[361557703,1747612275861,-400.0,0.00013917,2]
[361557704,1747612275870,-435.41,0.00013917,2]
[361557705,1747612275878,-435.16,0.00013917,2]
[361557706,1747612275887,-400.0,0.00013917,2]
[361557707,1747612275896,-400.0,0.00013917,2]
[361557708,1747612275905,-767.04,0.00013917,2]
[361557709,1747612275915,-590.23,0.00013917,2]
[361557710,1747612275924,-844.4,0.00013917,2]
[361557711,1747612275933,-286.77,0.00013917,2]
[361557712,1747612275942,-641.69,0.00013917,2]
[361557713,1747612275951,-614.09,0.00013917,2]
[361557714,1747612275960,-400.0,0.00013917,2]
[361557715,1747612275971,-400.0,0.00013917,2]
[361557716,1747612275980,-400.0,0.00013917,2]
[361557717,1747612275989,-583.44,0.00013917,2]
[361557718,1747612275999,-803.43,0.00013917,2]
[361557719,1747612276008,-400.0,0.00013917,2]
[361557720,1747612276017,-664.21,0.00013917,2]
[361557721,1747612276026,-1382.24,0.00013917,2]
[361557722,1747612276034,-400.0,0.00013917,2]
[361557723,1747612276043,-400.0,0.00013917,2]
[361557724,1747612276052,-400.0,0.00013917,2]
[361557725,1747612276061,-400.0,0.00013917,2]
[361557726,1747612276070,-400.0,0.00013917,2]
[361557727,1747612276081,-400.0,0.00013917,2]
[361557728,1747612276090,-7309.38,0.00013917,2]
[361557729,1747612276099,-400.0,0.00013917,2]
[361557730,1747612276109,-755.23,0.00013917,2]
[361557731,1747612276118,-1161.0,0.00013917,2]
[361557732,1747612276127,-653.41,0.00013917,2]
[361557733,1747612276136,-1191.66,0.00013917,2]
[361557734,1747612276145,-400.0,0.00013917,2]
[361557735,1747612276154,-616.83,0.00013917,2]
[361557736,1747612276163,-7751.1,0.00013917,2]
[361557737,1747612276171,-917.93,0.00013917,2]
[361557738,1747612276180,-403.62,0.00013917,2]
[361557739,1747612276189,-1254.39,0.00013917,2]
[361557740,1747612276198,-603.56,0.00013917,2]
[361557741,1747612276207,-400.0,0.00013917,2]
[361557742,1747612276217,-704.71,0.00013917,2]
[361557743,1747612276226,-400.0,0.00013917,2]
[361557744,1747612276235,-400.0,0.00013917,2]
[361557745,1747612276244,-863.49,0.00013917,2]
[361557746,1747612276254,-400.0,0.00013917,2]
[361557747,1747612276263,-1455.41,0.00013917,2]
[361557748,1747612276273,-557.48,0.00013917,2]
[361557749,1747612276282,-400.0,0.00013917,2]
[361557750,1747612276291,-602.32,0.00013917,2]
[361557751,1747612276301,-4191.37,0.00013917,2]
[361557752,1747612276310,-400.0,0.00013917,2]
[361557753,1747612276319,-10731.27,0.00013917,2]
[361557754,1747612276330,-400.0,0.00013917,2]
[361557755,1747612276339,-573.5,0.00013917,2]
[361557756,1747612276349,-400.0,0.00013917,2]
[361557757,1747612276359,-400.0,0.00013917,2]
[361557758,1747612276368,-400.0,0.00013917,2]
[361557759,1747612276378,-400.0,0.00013917,2]
[361557760,1747612276387,-1302.17,0.00013917,2]
[361557761,1747612276395,-316.24572689,0.00013917,2]
[361557762,1747612276404,-802.04,0.00013917,2]
[361557763,1747612276413,-86435.12,0.00013917,2]
[361557764,1747612276422,-18475.44,0.00013917,2]
[361557765,1747612276431,-12418.69,0.00013917,2]
[361557766,1747612276440,-407.12935187,0.00013917,2]
[361557767,1747612276449,-151.0,0.00013917,2]
[361557768,1747612276458,-400.0,0.00013917,2]
[361557769,1747612276467,-151.0,0.00013917,2]
[361557770,1747612276477,-151.0,0.00013917,2]
[361557771,1747612276486,-400.0,0.00013917,2]
[361557772,1747612276495,-336.11288196,0.00013917,2]
[361557773,1747612276504,-500.0,0.00013917,2]
[361557774,1747612276513,-887.08,0.00013917,2]
[361557775,1747612276522,-1409.3,0.00013917,2]
[361557776,1747612276530,-400.0,0.00013917,2]
[361557777,1747612276539,-151.0,0.00013917,2]
[361557778,1747612276548,-211.03262845,0.00013917,2]
[361557779,1747612276557,-152.270375,0.00013917,2]
[361557780,1747612276566,-400.0,0.00013917,2]
[361557781,1747612276577,-653.69,0.00013917,2]
[361557782,1747612276587,-1584.83,0.00013917,2]
[361557783,1747612276596,-1357.53,0.00013917,2]
[361557784,1747612276605,-447.78,0.00013917,2]
[361557785,1747612276615,-456.32,0.00013917,2]
[361557786,1747612276625,-400.0,0.00013917,2]
[361557787,1747612276636,-400.0,0.00013917,2]
[361557788,1747612276648,-1370.58,0.00013917,2]
[361557789,1747612276657,-501.78999017,0.00013917,2]
[361557790,1747612276666,-400.0,0.00013917,2]
[361557791,1747612276676,-400.0,0.00013917,2]
[361557792,1747612276685,-175.258332,0.00013917,2]
[361557793,1747612276695,-400.0,0.00013917,2]
[361557794,1747612276704,-3678.04,0.00013917,2]
[361557795,1747612276713,-400.0,0.00013917,2]
[361557796,1747612276723,-400.0,0.00013917,2]
[361557797,1747612276733,-1611.32,0.00013917,2]
[361557798,1747612276743,-400.0,0.00013917,2]
[361557799,1747612276753,-607.68,0.00013917,2]
[361557800,1747612276763,-400.0,0.00013917,2]
[361557801,1747612276773,-400.0,0.00013917,2]
[361557802,1747612276783,-8236.53,0.00013917,2]
[361557803,1747612276792,-1730.39,0.00013917,2]
[361557804,1747612276801,-400.0,0.00013917,2]
[361557805,1747612276811,-400.0,0.00013917,2]
[361557806,1747612276820,-400.0,0.00013917,2]
[361557807,1747612276833,-2475.0,0.00013917,2]
[361557808,1747612276842,-796.28,0.00013917,2]
[361557809,1747612276852,-420.08,0.00013917,2]
[361557810,1747612276862,-3744.13,0.00013917,2]
[361557811,1747612276871,-500.0,0.00013917,2]
[361557812,1747612276881,-1376.85,0.00013917,2]
[361557813,1747612276890,-400.0,0.00013917,2]
[361557814,1747612276900,-400.0,0.00013917,2]
[361557815,1747612276909,-400.0,0.00013917,2]
[361557816,1747612276918,-400.0,0.00013917,2]
[361557817,1747612276928,-400.0,0.00013917,2]
[361557818,1747612276938,-3026.36,0.00013917,2]
[361557819,1747612276947,-16037.89,0.00013917,2]
[361557820,1747612276957,-400.0,0.00013917,2]
[361557821,1747612276966,-400.0,0.00013917,2]
[361557822,1747612276976,-1022.64,0.00013917,2]
[361557823,1747612276986,-2331.65,0.00013917,2]
[361557824,1747612276995,-400.0,0.00013917,2]
[361557825,1747612277006,-741.36,0.00013917,2]
[361557826,1747612277015,-460.13,0.00013917,2]
[361557827,1747612277025,-1294.64,0.00013917,2]
[361557828,1747612277035,-400.0,0.00013917,2]
[361557829,1747612277152,-400.0,0.00013917,2]
[361557830,1747612277163,-658.29,0.00013917,2]
[361557831,1747612277173,-400.0,0.00013917,2]
[361557832,1747612277183,-1308.84,0.00013917,2]
[361557833,1747612277193,-1052.58,0.00013917,2]
[361557834,1747612277203,-508.63,0.00013917,2]
[361557835,1747612277212,-400.0,0.00013917,2]
[361557836,1747612277222,-1279.86,0.00013917,2]
[361557837,1747612277231,-400.0,0.00013917,2]
[361557838,1747612277241,-974.48,0.00013917,2]
[361557839,1747612277251,-472.64,0.00013917,2]
[361557840,1747612277261,-761.88,0.00013917,2]
[361557841,1747612277271,-776.84,0.00013917,2]
[361557842,1747612277281,-2559.34,0.00013917,2]
[361557843,1747612277290,-437.44,0.00013917,2]
[361557844,1747612277299,-1337.79,0.00013917,2]
[361557845,1747612277308,-400.0,0.00013917,2]
[361557846,1747612277318,-522.16,0.00013917,2]
[361557847,1747612277330,-400.0,0.00013917,2]
[361557848,1747612277339,-3186.92,0.00013917,2]
[361557849,1747612277348,-1413.94,0.00013917,2]
[361557850,1747612277358,-400.0,0.00013917,2]
[361557851,1747612277367,-440.53,0.00013917,2]
[361557852,1747612277377,-400.0,0.00013917,2]
[361557853,1747612277387,-400.0,0.00013917,2]
[361557854,1747612277396,-400.0,0.00013917,2]
[361557855,1747612277406,-400.0,0.00013917,2]
[361557856,1747612277415,-400.0,0.00013917,2]
[361557857,1747612277425,-400.0,0.00013917,2]
[361557858,1747612277434,-446.7,0.00013917,2]
[361557859,1747612277444,-967.89,0.00013917,2]
[361557860,1747612277453,-7206.98,0.00013917,2]
[361557861,1747612277462,-625.08,0.00013917,2]
[361557862,1747612277472,-1151.01,0.00013917,2]
[361557863,1747612277481,-476.38,0.00013917,2]
[361557864,1747612277491,-480.55,0.00013917,2]
[361557865,1747612277500,-400.0,0.00013917,2]
[361557866,1747612277509,-483.95,0.00013917,2]
[361557867,1747612277519,-400.0,0.00013917,2]
[361557868,1747612277528,-488.55,0.00013917,2]
[361557869,1747612277538,-1919.68,0.00013917,2]
[361557870,1747612277548,-911.69,0.00013917,2]
[361557871,1747612277557,-989.85,0.00013917,2]
[361557872,1747612277566,-686.24,0.00013917,2]
[361557873,1747612277578,-4394.73,0.00013917,2]
[361557874,1747612277587,-4401.89,0.00013917,2]
[361557875,1747612277596,-1109.96,0.00013917,2]
[361557876,1747612277605,-400.0,0.00013917,2]
[361557877,1747612277618,-400.0,0.00013917,2]
[361557878,1747612277627,-1570.51,0.00013917,2]
[361557879,1747612277636,-602.85,0.00013917,2]
[361557880,1747612277645,-400.0,0.00013917,2]
[361557881,1747612277654,-3621.58,0.00013917,2]
[361557882,1747612277665,-1010.41,0.00013917,2]
[361557883,1747612277674,-400.0,0.00013917,2]
[361557884,1747612277684,-400.0,0.00013917,2]
[361557885,1747612277694,-187.58135693,0.00013917,2]
[361557886,1747612277703,-400.0,0.00013917,2]
[361557887,1747612277713,-400.0,0.00013917,2]
[361557888,1747612277723,-997.23,0.00013917,2]
[361557889,1747612277732,-400.0,0.00013917,2]
[361557890,1747612277742,-675.214222,0.00013917,2]
[361557891,1747612277752,-675.214222,0.00013917,2]
[361557892,1747612277762,-675.214222,0.00013917,2]
[361557893,1747612277772,-1000.0,0.00013917,2]
[361557894,1747612277782,-2941.98,0.00013917,2]
[361557895,1747612277791,-400.0,0.00013917,2]
[361557896,1747612277801,-400.0,0.00013917,2]
[361557897,1747612277811,-567.16,0.00013917,2]
[361557898,1747612277820,-675.214222,0.00013917,2]
[361557899,1747612277833,-675.214222,0.00013917,2]
[361557900,1747612277842,-761.6,0.00013917,2]
[361557901,1747612277852,-675.214222,0.00013917,2]
[361557902,1747612277862,-400.0,0.00013917,2]
[361557903,1747612277872,-400.0,0.00013917,2]
[361557904,1747612277882,-164.36,0.00013917,2]
[361557905,1747612277891,-400.0,0.00013917,2]
[361557906,1747612277901,-2394.29,0.00013917,2]
[361557907,1747612277911,-400.0,0.00013917,2]
[361557908,1747612277921,-2916.79,0.00013917,2]
[361557909,1747612277930,-904.09,0.00013917,2]
[361557910,1747612277940,-958.408761,0.00013917,2]
[361557911,1747612277949,-958.408761,0.00013917,2]
[361557912,1747612277958,-958.408761,0.00013917,2]
[361557913,1747612277968,-400.0,0.00013917,2]
[361557914,1747612277977,-2778.09,0.00013917,2]
[361557915,1747612277987,-400.0,0.00013917,2]
[361557916,1747612277996,-958.408761,0.00013917,2]
[361557917,1747612278006,-958.408761,0.00013917,2]
[361557918,1747612278016,-1090.86,0.00013917,2]
[361557919,1747612278025,-400.0,0.00013917,2]
[361557920,1747612278034,-400.0,0.00013917,2]
[361557921,1747612278044,-958.408761,0.00013917,2]
[361557922,1747612278053,-400.0,0.00013917,2]
[361557923,1747612278063,-2539.39,0.00013917,2]
[361557924,1747612278072,-760.9,0.00013917,2]
[361557925,1747612278088,-790.66,0.00013917,2]
[361557926,1747612278098,-400.0,0.00013917,2]
[361557927,1747612278108,-655.63,0.00013917,2]
[361557928,1747612278118,-534.48,0.00013917,2]
[361557929,1747612278128,-400.0,0.00013917,2]
[361557930,1747612278138,-1224.84,0.00013917,2]
[361557931,1747612278148,-400.0,0.00013917,2]
[361557932,1747612278158,-400.0,0.00013917,2]
[361557933,1747612278168,-400.0,0.00013917,2]
[361557934,1747612278177,-642.22,0.00013917,2]
[361557935,1747612278187,-400.0,0.00013917,2]
[361557936,1747612278196,-2868.66,0.00013917,2]
[361557937,1747612278206,-737.68,0.00013917,2]
[361557938,1747612278215,-2786.32,0.00013917,2]
[361557939,1747612278224,-400.0,0.00013917,2]
[361557940,1747612278234,-2680.12,0.00013917,2]
[361557941,1747612278243,-1128.5,0.00013917,2]
[361557942,1747612278253,-2155.71,0.00013917,2]
[361557943,1747612278262,-400.0,0.00013917,2]
[361557944,1747612278272,-644.99,0.00013917,2]
[361557945,1747612278282,-400.0,0.00013917,2]
[361557946,1747612278292,-702.81,0.00013917,2]
[361557947,1747612278302,-330.81573,0.00013917,2]
[361557948,1747612278311,-330.81573,0.00013917,2]
[361557949,1747612278321,-400.0,0.00013917,2]
[361557950,1747612278336,-330.81573,0.00013917,2]
[361557951,1747612278345,-400.0,0.00013917,2]
[361557952,1747612278355,-400.0,0.00013917,2]
[361557953,1747612278365,-461.38132736,0.00013917,2]
[361557954,1747612278375,-2425.9,0.00013917,2]
[361557955,1747612278384,-330.81573,0.00013917,2]
[361557956,1747612278394,-400.0,0.00013917,2]
[361557957,1747612278403,-330.81573,0.00013917,2]
[361557958,1747612278413,-2476.92,0.00013917,2]
[361557959,1747612278422,-1693.89,0.00013917,2]
[361557960,1747612278432,-330.81573,0.00013917,2]
[361557961,1747612278441,-728.93,0.00013917,2]
[361557962,1747612278451,-400.0,0.00013917,2]
[361557963,1747612278460,-400.0,0.00013917,2]
[361557964,1747612278469,-749.06,0.00013917,2]
[361557965,1747612278479,-400.0,0.00013917,2]
[361557966,1747612278488,-400.0,0.00013917,2]
[361557967,1747612278497,-783.7,0.00013917,2]
[361557968,1747612278506,-400.0,0.00013917,2]
[361557969,1747612278515,-400.0,0.00013917,2]
[361557970,1747612278524,-400.0,0.00013917,2]
[361557971,1747612278534,-13154.19,0.00013917,2]
[361557972,1747612278543,-668.27,0.00013917,2]
[361557973,1747612278553,-400.0,0.00013917,2]
[361557974,1747612278564,-1644.02,0.00013917,2]
[361557975,1747612278578,-677.54,0.00013917,2]
[361557976,1747612278587,-400.0,0.00013917,2]
[361557977,1747612278596,-551.42,0.00013917,2]
[361557978,1747612278606,-400.0,0.00013917,2]
[361557979,1747612278616,-400.0,0.00013917,2]
[361557980,1747612278626,-12245.55,0.00013917,2]
[361557981,1747612278637,-462.63,0.00013917,2]
[361557982,1747612278651,-400.0,0.00013917,2]
[361557983,1747612278660,-400.0,0.00013917,2]
[361557984,1747612278670,-400.0,0.00013917,2]
[361557985,1747612278680,-2221.66,0.00013917,2]
[361557986,1747612278690,-400.0,0.00013917,2]
[361557987,1747612278701,-6709.35,0.00013917,2]
[361557988,1747612278711,-2142.84,0.00013917,2]
[361557989,1747612278720,-400.0,0.00013917,2]
[361557990,1747612278730,-400.0,0.00013917,2]
[361557991,1747612278740,-445.24,0.00013917,2]
[361557992,1747612278750,-193.209167,0.00013917,2]
[361557993,1747612278760,-701.81,0.00013917,2]
[361557994,1747612278770,-193.209167,0.00013917,2]
[361557995,1747612278780,-440.0397679,0.00013917,2]
[361557996,1747612278790,-193.209167,0.00013917,2]
[361557997,1747612278799,-1038.25,0.00013917,2]
[361557998,1747612278809,-400.0,0.00013917,2]
[361557999,1747612278819,-193.209167,0.00013917,2]
[361558000,1747612278832,-400.0,0.00013917,2]
[361558001,1747612278843,-193.209167,0.00013917,2]
[361558002,1747612278853,-193.209167,0.00013917,2]
[361558003,1747612278863,-400.0,0.00013917,2]
[361558004,1747612278873,-642.2,0.00013917,2]
[361558005,1747612278882,-400.0,0.00013917,2]
[361558006,1747612278892,-8413.39,0.00013917,2]
[361558007,1747612278902,-1627.81,0.00013917,2]
[361558008,1747612278912,-400.0,0.00013917,2]
[361558009,1747612278922,-819.9,0.00013917,2]
[361558010,1747612278932,-1133.16,0.00013917,2]
[361558011,1747612278943,-400.0,0.00013917,2]
[361558012,1747612278952,-400.0,0.00013917,2]
[361558013,1747612278962,-1395.75,0.00013917,2]
[361558014,1747612278972,-1034.66,0.00013917,2]
[361558015,1747612278981,-2163.49,0.00013917,2]
[361558016,1747612278991,-400.0,0.00013917,2]
[361558017,1747612279000,-400.0,0.00013917,2]
[361558018,1747612279009,-1821.48,0.00013917,2]
[361558019,1747612279019,-1959.58,0.00013917,2]
[361558020,1747612279028,-1331.23,0.00013917,2]
[361558021,1747612279038,-400.0,0.00013917,2]
[361558022,1747612279048,-400.0,0.00013917,2]
[361558023,1747612279058,-1154.41,0.00013917,2]
[361558024,1747612279068,-400.0,0.00013917,2]
[361558025,1747612279084,-418.39574863,0.00013917,2]
[361558026,1747612279093,-3652.02,0.00013917,2]
[361558027,1747612279103,-400.0,0.00013917,2]
[361558028,1747612279113,-663.67,0.00013917,2]
[361558029,1747612279123,-1461.1,0.00013917,2]
[361558030,1747612279133,-4605.78,0.00013917,2]
[361558031,1747612279144,-400.0,0.00013917,2]
[361558032,1747612279154,-1483.82,0.00013917,2]
[361558033,1747612279164,-420.97,0.00013917,2]
[361558034,1747612279174,-400.0,0.00013917,2]
[361558035,1747612279183,-8305.78,0.00013917,2]
[361558036,1747612279193,-557.5,0.00013917,2]
[361558037,1747612279202,-1164.02,0.00013917,2]
[361558038,1747612279212,-479.29,0.00013917,2]
[361558039,1747612279221,-400.0,0.00013917,2]
[361558040,1747612279230,-527.05,0.00013917,2]
[361558041,1747612279565,-400.0,0.00013917,2]
[361558042,1747612279577,-500.0,0.00013917,2]
[361558043,1747612279587,-573.32,0.00013917,2]
[361558044,1747612279597,-1075.01,0.00013917,2]
[361558045,1747612279606,-400.0,0.00013917,2]
[361558046,1747612279619,-794.8,0.00013917,2]
[361558047,1747612279629,-416.42,0.00013917,2]
[361558048,1747612279638,-2654.28,0.00013917,2]
[361558049,1747612279648,-3835.08,0.00013917,2]
[361558050,1747612279659,-151.0,0.00013917,2]
[361558051,1747612279668,-834.62,0.00013917,2]
[361558052,1747612279678,-151.0,0.00013917,2]
[361558053,1747612279687,-151.0,0.00013917,2]
[361558054,1747612279697,-1021.04,0.00013917,2]
[361558055,1747612279708,-400.0,0.00013917,2]
[361558056,1747612279717,-848.25,0.00013917,2]
[361558057,1747612279727,-884.51,0.00013917,2]
[361558058,1747612279736,-1316.98,0.00013917,2]
[361558059,1747612279745,-857.28,0.00013917,2]
[361558060,1747612279755,-400.0,0.00013917,2]
[361558061,1747612279765,-5506.06,0.00013917,2]
[361558062,1747612279774,-400.0,0.00013917,2]
[361558063,1747612279784,-407.84,0.00013917,2]
[361558064,1747612279794,-933.048901,0.00013917,2]
[361558065,1747612279803,-933.048901,0.00013917,2]
[361558066,1747612279813,-1000.0,0.00013917,2]
[361558067,1747612279822,-150.0,0.00013921,2]
[361558068,1747612279835,-485.2427531,0.00013929,2]
[361558069,1747612279844,-5237.08271641,0.00013934,2]
[361558070,1747612279854,-5237.08271641,0.00013969,2]
[361558071,1747612279863,-865.76,0.00013971,2]
[361558072,1747612279872,-500.0,0.00013971,2]
[361558073,1747612279881,-151.0,0.00013972,2]
[361558074,1747612279891,-151.0,0.00013972,2]
[361558075,1747612279900,-800.0,0.00013972,2]
[361558076,1747612279909,-500.0,0.00013973,2]
[361558077,1747612279919,-639.64650418,0.00013973,2]
[361558078,1747612279928,-508.40250161,0.00013973,2]
[361558079,1747612279938,-500.0,0.00013973,2]
[361558080,1747612279948,-500.0,0.00013973,2]
[361558081,1747612279958,-500.0,0.00013973,2]
[361558082,1747612279967,-500.0,0.00013973,2]
[361558083,1747612279976,-500.0,0.00013973,2]
[361558084,1747612279986,-500.0,0.00013973,2]
[361558085,1747612279995,-500.51506922,0.00013973,2]
[361558086,1747612280005,-196.0,0.00013973,2]
[361558087,1747612280014,-1000.0,0.00013985,2]
[361558088,1747612280024,-438.914349,0.00013989,2]
[361558089,1747612280033,-438.914349,0.00013989,2]
[361558090,1747612280043,-1240.0303165,0.00013989,2]
[361558091,1747612280053,-577.8447352,0.00013989,2]
[361558092,1747612280062,-23145.2855841,0.00013989,2]
[361558093,1747612280071,-6488.9860399,0.00013989,2]
[361558094,1747612280082,-151.0,0.00013989,2]
[361558095,1747612280092,-179.017888,0.00013989,2]
[361558096,1747612280102,-675.214222,0.00013989,2]
[361558097,1747612280111,-675.214222,0.00013989,2]
[361558098,1747612280120,-958.408761,0.00013989,2]
[361558099,1747612280130,-958.408761,0.00013989,2]
[361558100,1747612280139,-193.209167,0.00013989,2]
[361558101,1747612280148,-193.209167,0.00013989,2]
[361558102,1747612280158,-151.0,0.0001399,2]
[361558103,1747612280167,-151.0,0.0001399,2]
[361558104,1747612280177,-151.0,0.0001399,2]
[361558105,1747612280186,-1204.5679825,0.0001399,2]
[361558106,1747612280195,-1169.1056484,0.0001399,2]
[361558107,1747612280205,-1133.6433144,0.0001399,2]
[361558108,1747612280214,-161.237682,0.0001399,2]
[361558109,1747612280223,-161.237682,0.0001399,2]
[361558110,1747612280233,-561.3195561,0.0001399,2]
[361558111,1747612280242,-544.794377,0.0001399,2]
[361558112,1747612280252,-528.269198,0.0001399,2]
[361558113,1747612280261,-151.0,0.0001399,2]
[361558114,1747612280270,-22483.3776955,0.0001399,2]
[361558115,1747612280280,-21821.469807,0.0001399,2]
[361558116,1747612280289,-21159.5619184,0.0001399,2]
[361558117,1747612280298,-151.0,0.0001399,2]
[361558118,1747612280308,-5393.0417372,0.0001399,2]
[361558119,1747612280318,-4297.0974344,0.0001399,2]
[361558120,1747612280329,-3201.1531317,0.0001399,2]
[361558121,1747612280339,-219.1223634,0.0001399,2]
[361558122,1747612280348,-259.2268388,0.0001399,2]
[361558123,1747612280358,-299.3313142,0.0001399,2]
[361558124,1747612280368,-330.81573,0.0001399,2]
[361558125,1747612280378,-330.81573,0.0001399,2]
[361558126,1747612280388,-172.36447946,0.0001399,2]
[361558127,1747612280398,-355.22528199,0.00013999,2]
[361558128,1747612280407,-635.8705,0.00013999,2]
[361558129,1747612280418,-150.0,0.00013999,2]
[361558130,1747612280429,-1000.0,0.00013999,2]
[361558131,1747612280438,-313.018066,0.00013999,2]
[361558132,1747612280447,-313.018066,0.00013999,2]
[361558133,1747612280457,-151.0,0.00013999,2]
[361558134,1747612280466,-865.76,0.00013999,2]
[361558135,1747612280475,-865.76,0.00013999,2]
[361558136,1747612280485,-865.76,0.00013999,2]
[361558137,1747612280495,-865.76,0.00013999,2]
[361558138,1747612280504,-865.76,0.00013999,2]
[361558139,1747612280514,-865.76,0.00013999,2]
[361558140,1747612280523,-865.76,0.00013999,2]
[361558141,1747612280533,-865.76,0.00013999,2]
[361558142,1747612280542,-865.76,0.00013999,2]
[361558143,1747612280552,-865.76,0.00013999,2]
[361558144,1747612280561,-865.76,0.00013999,2]
[361558145,1747612280571,-865.76,0.00013999,2]
[361558146,1747612280581,-865.95,0.00013999,2]
[361558147,1747612280590,-500.0,0.00013999,2]
[361558148,1747612280602,-500.0,0.00013999,2]
[361558149,1747612280613,-500.0,0.00013999,2]
[361558150,1747612280625,-151.0,0.00013999,2]
[361558151,1747612280634,-1479046.79221898,0.00014,2]
[361558152,1747612280644,-16284.9,0.00014,2]
[361558153,1747612280654,-181882.01786826,0.00014,2]
[361558154,1747612281155,-16918.25177691,0.00014,2]
[361558155,1747612281166,-4359.35182713,0.00014,2]
[361558156,1747612281177,-3219.85439505,0.00014,2]
[361558157,1747612281361,-400.0,0.00013698,2]
[361558158,1747612281370,-933.048901,0.00013917,2]
[361558159,1747612281378,-3076.69718826,0.00014,2]
[361558160,1747612289460,2000.0,0.00012,2]
[361558161,1747612491772,469.9,0.00010914,2]